Workbook

Sheet Anleitung
A1: Angaben des Anbieters
B3: Firma:
B4: Straße:
B5: PLZ / Ort:
B6: Ansprechpartner:
B7: Tel-Nr:
B8: Fax-Nr:
B9: e-mail:
A13: Pos. | B13: Blatt | C13: Eingaben
A15: 1. | B15: SVS Glas | C15: zur Ermittlung der Stundenverrechnungssätze
C16: bitte die gelb hinterlegten Zellen ausfüllen.
A18: 2. | B18: Kalkulation Glas | C18: bitte in die gelb hinterlegten Zellen Ihre Kalkulationswerte
C19: eintragen
A22: 3. | B22: Preisblatt | C22: bitte die gelb hinterlegten Zellen ausfüllen
A25: 4. | B25: Allgemeines: | C25: um die Vergleichbarkeit der Angebote zu gewährleisten
C26: dürfen in der Kalkulation den Berechnungen keine
C27: Rundungen zugrunde gelegt werden!
A29: 5. | B29: Ausschlusskriterien: | C29: wird der Schreibschutz aufgehoben oder Änderungen an
C30: Formeln oder Formaten vorgenommen, wird das Angebot
C31: nicht gewertet und führt zwingend zum Ausschluss aus
C32: der Ausschreibung!
A37: 6. | B37: Die Angebote müssen spätestens bis zum 05.06.2018 um 10 Uhr, vorliegen.
B38: Sämtliche Tabellen müssen in Dateiform abgegeben werden und die
B39: Preisblätter sind auszudrucken und müssen dem Angebot unterschrieben beigelegt
B40: werden.

Sheet Reinigungsturnus
B1: Reinigungsturnus
B3: Turnusangabe | C3: Bedeutung | D3: Jahresreinigungstage
B5: 1w | C5: 1 x wöchentlich | D5: 38.00
B6: 2w | C6: 2 x wöchentlich | D6: 76.00
B7: 2,5w | C7: jeden zweiten Tag Mo - Fr (5 x in zwei Wochen) | D7: 95.00
B8: 3w | C8: 3 x wöchentlich | D8: 114.00
B9: 4w | C9: 4 x wöchentlich | D9: 152.00
B10: 5w | C10: 5 x wöchentlich Mo - Fr | D10: alle Gebäude
B11: 1M | C11: 1 x monatlich | D11: 9.00
B12: 2M | C12: 2 x monatlich | D12: 18.00
B13: 1J | C13: 1 x jährlich | D13: 1.00
B14: 2J | C14: 2 x jährlich (halbjährlich) | D14: 2.00
B15: 3J | C15: 3 x jährlich | D15: 3.00
B16: 4J | C16: 4 x jährlich (vierteljährlich) | D16: 4.00
B17: 6J | C17: 6 x jährlich | D17: 6.00
B18: 0,25J | C18: in 4 Jahren 1 x Reinigung | D18: 0.25
B19: B | C19: Auf Bestellung | D19: Arbeiten auf Bestellung

Sheet SVS Glas
C3: anbietender Dienstleister :
A5: Kalkulation der Stundenverrechnungssätze
B8: Lohngruppe: | D8: sozialversicherungspflichtig | G8: Geringverdiener
B9: Bundesland: | D9: in % | E9: in EUR | G9: in % | H9: in EUR
B10: Tariflohn | D10: 100.00% | G10: 100.00%
A11: A. | B11: Lohngebundene Kosten
A12: A.1. | B12: Lohnnebenkosten
A13: A.1.1. | B13: Rentenversicherung | E13: =D13*$E$10 -> 0.00 € | H13: =G13*$H$10 -> 0.00 €
A14: A.1.2. | B14: Krankenversicherung | E14: =D14*$E$10 -> 0.00 € | H14: =G14*$H$10 -> 0.00 €
A15: A.1.3. | B15: Arbeitslosenversicherung | E15: =D15*$E$10 -> 0.00 €
A16: A.1.4. | B16: Pflegeversicherung | E16: =D16*$E$10 -> 0.00 €
A17: A.1.5. | B17: Mutterschaftsaufwendungen U2 | E17: =D17*$E$10 -> 0.00 € | H17: =G17*$H$10 -> 0.00 €
B18: Summe A.1. Lohnnebenkosten ( AG-Anteil ) | D18: =SUM(D13:D17) -> 0.00% | E18: =SUM(E13:E17) -> 0.00 € | G18: =SUM(G13:G17) -> 0.00% | H18: =SUM(H13:H17) -> 0.00 €
A19: A.2. | B19: Lohnfolgekosten
A20: A.2.1. | B20: Urlaub | E20: =D20*$E$10 -> 0.00 € | H20: =G20*$H$10 -> 0.00 €
A21: A.2.2. | B21: Gesetzliche Feiertage | E21: 0.00 € | H21: 0.00 €
A22: A.2.3. | B22: Lohnfortzahlung im Krankheitsfall | E22: 0.00 € | H22: 0.00 €
A23: A.2.4. | B23: Arbeitsfreistellung | E23: 0.00 € | H23: 0.00 €
A24: A.2.6. | B24: Urlaubsgeld zusätzlich | E24: 0.00 € | H24: 0.00 €
A25: A.2.7. | B25: Sozialversicherungsanteil | D25: =SUM(D20:D24)*D18 -> 0.00% | E25: 0.00 € | G25: =SUM(G20:G24)*G18 -> 0.00% | H25: =G25*$H$10 -> 0.00 €
B26: Summe A.2. Lohnfolgekosten | D26: =SUM(D20:D25) -> 0.00% | E26: =SUM(E20:E25) -> 0.00 € | G26: =SUM(G20:G25) -> 0.00% | H26: =SUM(H20:H25) -> 0.00 €
A27: A.3. | B27: Lohngebundene Zusatzkosten
A28: A.3.1. | B28: Unfallversicherung gesetzlich | E28: =D28*$E$10 -> 0.00 € | H28: =G28*$H$10 -> 0.00 €
A29: A.3.2. | B29: Haftpflichtversicherung | E29: =D29*$E$10 -> 0.00 € | H29: 0.00 €
A30: A.3.3. | B30: Schwerbehindertenabgabe | E30: =D30*$E$10 -> 0.00 € | H30: 0.00 €
A31: A.3.4. | B31: Beiträge zur Berufsorganisation | E31: =D31*$E$10 -> 0.00 € | H31: 0.00 €
A32: A.3.5. | B32: Insolvenzgeldumlage | E32: =D32*$E$10 -> 0.00 € | H32: 0.00 €
B33: Summe A.3. Lohngebundene Zusatzkosten | D33: =SUM(D28:D32) -> 0.00% | E33: =SUM(E28:E32) -> 0.00 € | G33: =SUM(G28:G32) -> 0.00% | H33: =SUM(H28:H32) -> 0.00 €
A34: B. | B34: Unternehmensbezogene Kosten
A35: B.1. | B35: Löhne/ Gehälter kaufm. Beschäftigte inkl. Lohnfolgekst. | E35: =D35*$E$10 -> 0.00 € | H35: =G35*$H$10 -> 0.00 €
A36: B.2. | B36: Löhne/ Gehälter techn. Beschäftigte inkl. Lohnfolgekst. | E36: =D36*$E$10 -> 0.00 € | H36: 0.00 €
A37: B.3. | B37: Gewerbesteuer | E37: =D37*$E$10 -> 0.00 € | H37: 0.00 €
A38: B.4. | B38: Fuhrparkkosten | E38: =D38*$E$10 -> 0.00 € | H38: 0.00 €
A39: B.5. | B39: Verwaltungskosten | E39: =D39*$E$10 -> 0.00 € | H39: 0.00 €
B40: Summe B Unternehmensbezogene Kosten | D40: =SUM(D35:D39) -> 0.00% | E40: =SUM(E35:E39) -> 0.00 € | G40: =SUM(G35:G39) -> 0.00% | H40: =SUM(H35:H39) -> 0.00 €
A41: C. | B41: Auftragsbezogene Kosten
A42: C.1. | B42: Löhne für Objektleiter und Vorarbeiter | E42: =D42*$E$10 -> 0.00 € | H42: =G42*$H$10 -> 0.00 €
A43: C.2. | B43: Materialkosten Reinigungs-/ Verbrauchsmaterial | E43: =D43*$E$10 -> 0.00 € | H43: 0.00 €
A44: C.3. | B44: AFA und Betriebskosten Maschinen und Geräte | E44: =D44*$E$10 -> 0.00 € | H44: 0.00 €
A45: C.4. | B45: Fertigungshilfskosten | E45: =D45*$E$10 -> 0.00 € | H45: 0.00 €
B46: Summe C Auftragsbezogene Kosten | D46: =SUM(D42:D45) -> 0.00% | E46: =SUM(E42:E45) -> 0.00 € | G46: =SUM(G42:G45) -> 0.00% | H46: =SUM(H42:H45) -> 0.00 €
A47: D. | B47: Selbstkosten (Summe A. bis C.) | D47: =D18+D26+D33+D40+D46 -> 0.00% | E47: =E18+E26+E33+E40+E46 -> 0.00 € | G47: =G18+G26+G33+G40+G46 -> 0.00% | H47: =H18+H26+H33+H40+H46 -> 0.00 €
A48: E. | B48: Risiko- und Gewinnaufschlag | E48: =D48*$E$10 -> 0.00 € | H48: =G48*$E$10 -> 0.00 €
A49: F. | B49: Gesamtzuschlag auf den Tariflohn | D49: =D47+D48 -> 0.00% | E49: =E47+E48 -> 0.00 € | G49: =G47+G48 -> 0.00% | H49: =H47+H48 -> 0.00 €
A51: Stundenverrechnungssatz an Werktagen | D51: =D10+D49 -> 100.00% | E51: =E10+E49 -> 0.00 € | G51: =G10+G49 -> 100.00% | H51: =H10+H49 -> 0.00 €
A53: Lohnkostenanteil am Preis | D53: =IF(E51=0,"",(E10+E18+E26+E42)/E51) ->  | G53: =IF(H51=0,"",(H10+H18+H26+H42)/H51) -> 
A55: Stundenverrechnungssatz für Nachtarbeit
A57: Stundenverrechnungssatz an S.u.F.tagen
A59: Die Personalaufteilung muss 100% ergeben!
C60: Personalaufteilung SV - GV | D60: 100.00%
C62: Stundenverrechnungssatz an Werktagen | E62: =E51*D60+H51*G60 -> 0.00 €
C63: Stundenverrechnungssatz für Nachtarbeit
C64: Stundenverrechnungssatz an S. u. F.tagen

Sheet Aufmaß Wirtschaftsschule
A2: Aufmaß Gals - Wirtschaftschule Freising
A3: Glasflächen
A7: R.Nr. | B7: Nutzung | C7: HNF | D7: NNF | E7: FF | F7: VF | H7: Linoleum | I7: Teppich | J7: Stein | K7: Fliesen | L7: Parkett | M7: Estrich | N7: Fensterfläche
H8: / PVC
B10: Untergeschoß
A12: U1 | B12: Musiksaal | C12: 76.22 | H12: 76.22 | N12: 23.98
A13: U2 | B13: Fotolabor | C13: 16.31 | H13: 16.31
B14: Nebenraum | C14: 16.19 | H14: 16.19
A15: U3 | B15: Archiv / Abstellraum | C15: 120.70 | M15: 120.70 | N15: 20.24
A16: U4 | B16: Werkstatt / HSM | C16: 16.20 | H16: 16.20 | N16: 1.73
A17: U5 | B17: Keramik | C17: 16.09 | M17: 16.09 | N17: 1.73
A18: U6 | B18: Elt. Anschlußraum | E18: 15.76 | M18: 15.76 | N18: 1.73
A19: U7 | B19: Heizung | E19: 47.29 | M19: 47.29 | N19: 1.73
B20: Kaminraum | E20: 8.26 | M20: 8.26
A21: U8 | B21: Zählerraum / Abstellr. | E21: 31.69 | M21: 31.69
B22: Müllabwurfschacht | E22: 3.80 | M22: 3.80
B23: Abfallcontainerraum | E23: 23.45 | M23: 23.45 | N23: 0.86
B24: Containeraufzug | E24: 4.24 | M24: 4.24
A25: U9 | B25: Fahrradkeller / Abstell | D25: 252.46 | M25: 252.46 | N25: 6.06
B26: Werkstatt | D26: 63.49 | M26: 63.49
B27: Theaterarchiv | D27: 21.82 | M27: 21.82
B28: Abstellraum | D28: 3.02 | M28: 3.02
B29: Flur | F29: 50.49 | H29: 50.49
B30: Treppenhaus | F30: 27.76 | H30: 27.76
A31: Erw. | B31: Aufzug-Vorraum | F31: 12.69 | H31: 12.69
B32: Aufzug-Masch.Raum | E32: 3.93 | M32: 3.93
B35: Summe UG | C35: =SUM(C10:C34) -> 261.71 | D35: =SUM(D10:D34) -> 340.79 | E35: =SUM(E10:E34) -> 138.42 | F35: =SUM(F10:F34) -> 90.94 | H35: =SUM(H10:H34) -> 215.86 | I35: 0.00 | J35: 0.00 | K35: 0.00 | L35: 0.00 | M35: 616.00 | N35: 58.06
A37: R.Nr. | B37: Nutzung | C37: HNF | D37: NNF | E37: FF | F37: VF | H37: Linoleum | I37: Teppich | J37: Stein | K37: Fliesen | L37: Parkett | M37: Estrich | N37: Fensterfläche
H38: / PVC
B40: Erdgeschoß
A42: 0.1 | B42: Lehrerzimmer | C42: 67.52 | I42: 67.52 | N42: 36.55
B43: Lehrergarderobe | C43: 7.46 | I43: 7.46 | N43: 6.52
A44: 0.2 | B44: Stellvertreter | C44: 23.13 | I44: 23.13 | N44: 6.55
A45: 0.3 | B45: Sekretariat | C45: 31.36 | I45: 31.36 | N45: 6.55
B46: Verwaltungsraum | C46: 19.32 | I46: 19.32 | N46: 13.10
A47: 0.4 | B47: Direktor | C47: 23.15 | I47: 23.15 | N47: 6.55
B48: WC-Lehrer | D48: 18.10 | K48: 18.10
B49: WC-Mädchen | D49: 26.41 | K49: 26.41
B50: Putzkammer | D50: 3.16 | K50: 3.16
A51: 0.5 | B51: Lehrmittelraum | C51: 45.62 | H51: 45.62 | N51: 19.65
A52: 0.6 | B52: Elternsprechzimmer | C52: 8.17 | I52: 8.17 | N52: 4.36
A53: 0.7 | B53: Krankenzimmer | C53: 8.17 | I53: 8.17 | N53: 4.36
B54: Vorraum | C54: 14.94 | I54: 14.94
A55: 0.8 | B55: Klasse | C55: 66.52 | I55: 66.52 | N55: 17.47
A56: 0.8a | B56: Klasse | C56: 49.68 | I56: 49.68 | N56: 13.10
A57: 0.9 | B57: Klasse | C57: 45.62 | I57: 45.62 | N57: 19.65
A58: 0.10 | B58: Bibliothek | C58: 69.12 | I58: 69.12 | N58: 24.02
A59: 0.11 | B59: Klasse | C59: 65.95 | H59: 65.95 | N59: 17.47
A60: 0.12 | B60: Klasse | C60: 66.89 | I60: 66.89 | N60: 17.47
B61: WC-Mädchen | D61: 5.37 | K61: 5.37
B62: WC-Buben | D62: 6.63 | K62: 6.63
A63: 0.13 | B63: Klasse | C63: 40.92 | I63: 40.92 | N63: 8.73
A64: 0.14 | B64: Klasse | C64: 67.01 | H64: 67.01 | N64: 17.47
A65: 0.15 | B65: Klasse | C65: 66.82 | I65: 66.82 | N65: 17.47
A66: 0.16 | B66: Klasse | C66: 57.19 | H66: 57.19 | N66: 15.28
A67: 0.17 | B67: Beratungslehrer | C67: 17.98 | I67: 17.98 | N67: 12.60
A68: 0.18 | B68: Medienraum | C68: 16.33 | I68: 16.33
A69: 0.20 | B69: Klasse | C69: 83.01 | I69: 83.01 | N69: 21.83
A70: 0.21 | B70: SMV | C70: 19.63 | I70: 19.63 | N70: 5.46
A71: 0.22 | B71: Getränkelager | C71: 25.03 | H71: 25.03
B72: Pausenverkauf | C72: 12.60 | H72: 12.60
B73: Hausmeister | C73: 14.87 | H73: 14.87 | N73: 12.00
B74: Flur | F74: 2.77 | H74: 2.77
B75: Putzkammer | D75: 3.17 | K75: 3.17
B76: WC-Buben | D76: 20.16 | K76: 20.16
B77: Abstellraum | D77: 1.04 | K77: 1.04
B78: Pausenhalle | C78: 292.61 | F78: 97.53 | H78: 214.83 | K78: 175.31 | N78: 45.58
B79: Windfang | F79: 9.31 | I79: 9.31 | N79: 6.00
B80: Flur (PVC) | F80: 176.99 | H80: 176.99 | N80: 8.11
B81: Treppen (PVC) | F81: 23.70 | H81: 23.70
B82: Treppenhaus (PVC) | F82: 36.78 | H82: 36.78 | N82: 6.34
A83: Erw. | B83: Putzkammer | D83: 4.00 | K83: 4.00
B84: Vorraum-Aufzug | F84: 13.35 | H84: 13.35
B87: Summe EG | C87: =SUM(C40:C85) -> 1326.62 | D87: =SUM(D40:D85) -> 88.04 | E87: =SUM(E40:E85) -> 0.00 | F87: =SUM(F40:F85) -> 360.43 | H87: =SUM(H40:H85) -> 756.69 | I87: 755.05 | J87: 0.00 | K87: 263.35 | L87: 0.00 | M87: 0.00 | N87: 390.24
A89: R.Nr. | B89: Nutzung | C89: HNF | D89: NNF | E89: FF | F89: VF | H89: Linoleum | I89: Teppich | J89: Stein | K89: Fliesen | L89: Parkett | M89: Estrich | N89: Fensterfläche
H90: / PVC
B92: 1. Obergeschoß
A94: 1.1 | B94: Lehrsaal Biologie | C94: 84.99 | H94: 24.06 | K94: 60.93 | N94: 45.85
A95: 1.2 | B95: Vorbereitung | C95: 11.13 | K95: 11.13 | N95: 6.55
A96: 1.3 | B96: Klasse | C96: 44.42 | I96: 44.42 | N96: 18.56
B97: Putzkammer | D97: 1.56 | K97: 1.56
B98: WC-Lehrer | D98: 3.04 | K98: 3.04
B99: WC-Mädchen | D99: 17.96 | K99: 17.96 | N99: 6.60
A100: 1.4 | B100: Klasse | C100: 62.91 | I100: 62.91 | N100: 22.92
A101: 1.5 | B101: EDV-Raum | C101: 66.23 | I101: 66.23 | N101: 17.47
A102: 1.6 | B102: EDV-Raum | C102: 66.28 | I102: 66.28 | N102: 17.47
A103: 1.7 | B103: Übungsfirma | C103: 113.47 | I103: 113.47 | N103: 30.57
A104: 1.8 | B104: Klasse | C104: 65.96 | I104: 65.96 | N104: 17.47
A105: 1.9 | B105: Textverarbeitung I | C105: 75.43 | I105: 75.43 | N105: 19.65
A106: 1.10 | B106: Medienraum | C106: 8.77 | I106: 8.77
A107: 1.11 | B107: Vorbereitung | C107: 32.28 | I107: 32.28 | N107: 6.55
B108: Nebenraum | C108: 7.11 | I108: 7.11
A109: 1.12 | B109: Textverarbeitung II | C109: 76.75 | I109: 76.75 | N109: 19.65
A110: 1.13 | B110: Klasse | C110: 66.71 | I110: 66.71 | N110: 17.47
A111: 1.14 | B111: Klasse | C111: 57.18 | H111: 57.18 | N111: 15.28
A112: 1.15 | B112: Schulküche | C112: 114.59 | H112: 7.45 | K112: 99.69 | L112: 7.45 | N112: 21.83
B113: Essraum | C113: 18.15 | I113: 18.15 | N113: 16.80
A114: 1.16 | B114: Klasse | C114: 65.04 | I114: 65.04 | N114: 28.38
B115: Putzkammer | D115: 1.56 | K115: 1.56
B116: WC-Lehrer | D116: 3.04 | K116: 3.04
B117: WC-Buben | D117: 17.96 | K117: 17.96 | N117: 6.60
B118: Halle (PVC) | F118: 88.60 | G118: 88.60 | H118: 88.60
B119: Treppen (PVC) | F119: 39.60 | H119: 39.60
B120: Flur (PVC) | F120: 177.14 | H120: 177.14 | N120: 6.55
B121: Treppenhaus (PVC) | F121: 36.78 | H121: 36.78 | N121: 6.34
A122: Erw. | B122: Putzkammer | D122: 4.00 | K122: 4.00
B123: Vorraum-Aufzug | F123: 14.38 | H123: 14.38
B125: Summe 1.OG | C125: =SUM(C92:C124) -> 1037.40 | D125: =SUM(D92:D124) -> 49.12 | E125: =SUM(E92:E124) -> 0.00 | F125: =SUM(F92:F124) -> 356.50 | H125: =SUM(H92:H124) -> 445.19 | I125: 769.51 | J125: 0.00 | K125: 220.87 | L125: 7.45 | M125: 0.00 | N125: 348.56
A127: R.Nr. | B127: Nutzung | C127: HNF | D127: NNF | E127: FF | F127: VF | H127: Linoleum | I127: Teppich | J127: Stein | K127: Fliesen | L127: Parkett | M127: Estrich | N127: Fensterfläche
H128: / PVC
B130: 2. Obergeschoß
A132: 2.1 | B132: Klasse | C132: 72.79 | I132: 72.79 | N132: 45.78
A133: 2.2 | B133: Klasse | C133: 31.08 | I133: 31.08 | N133: 17.47
B134: Putzkammer | D134: 1.56 | K134: 1.56
B135: WC-Lehrer | D135: 3.04 | K135: 3.04
B136: WC-Mädchen | D136: 13.25 | K136: 13.25 | N136: 6.60
A137: 2.3 | B137: Klasse | C137: 68.43 | I137: 68.43 | N137: 21.83
A138: 2.4 | B138: Klasse | C138: 60.42 | I138: 60.42 | N138: 19.65
A139: 2.5 | B139: Klasse | C139: 66.28 | I139: 66.28 | N139: 17.47
A140: 2.6 | B140: Vorbereitung | C140: 43.00 | I140: 43.00 | N140: 15.28
A141: 2.7 | B141: Zeichensaal | C141: 89.24 | H141: 89.24 | N141: 19.65
A142: 2.8 | B142: Klasse | C142: 65.80 | I142: 65.80 | N142: 33.60
B143: Putzkammer | D143: 1.56 | K143: 1.56
B144: WC-Lehrer | D144: 3.04 | K144: 3.04
B145: WC-Buben | D145: 13.25 | K145: 13.25 | N145: 6.60
B146: Halle (PVC) | F146: 96.60 | H146: 96.60
B147: Flur (PVC) | F147: 50.46 | H147: 50.46
B148: Treppenhaus (PVC) | F148: 31.68 | H148: 31.68 | N148: 6.34
A149: Erw. | B149: Lehrerzimmer | C149: 64.85 | I149: 64.85
B150: Klasse 1 | C150: 59.94 | I150: 59.94
B151: Klasse 2 | C151: 50.40 | I151: 50.40
B152: Klasse 3 | C152: 59.11 | I152: 59.11
B153: Klasse 4 | C153: 64.73 | I153: 64.73
B154: Text 1 | C154: 77.72 | I154: 77.72
B155: Text 2 | C155: 74.10 | I155: 74.10
B156: Übungsfirma | C156: 84.29 | I156: 84.29
B157: Flur | F157: 145.13 | H157: 145.13
B158: WC-Buben | D158: 7.23 | K158: 7.23
B159: WC-Mädchen | D159: 9.02 | K159: 9.02
B160: Putzkammer | D160: 4.39 | K160: 4.39
B161: Aufzug-Vorraum | F161: 15.31 | H161: 15.31
B168: Summe 2.OG | C168: =SUM(C130:C167) -> 1032.18 | D168: =SUM(D130:D167) -> 56.34 | E168: =SUM(E130:E167) -> 0.00 | F168: =SUM(F130:F167) -> 339.18 | H168: =SUM(H130:H167) -> 428.42 | I168: 942.94 | J168: 0.00 | K168: 56.34 | L168: 0.00 | M168: 0.00 | N168: 210.27
A170: R.Nr. | B170: Nutzung | C170: HNF | D170: NNF | E170: FF | F170: VF | H170: Linoleum | I170: Teppich | J170: Stein | K170: Fliesen | L170: Parkett | M170: Estrich | N170: Fensterfläche
H171: / PVC
B173: Zusammenstellung
B176: Summe UG | C176: =SUM(C35) -> 261.71 | D176: 340.79 | E176: 138.42 | F176: 90.94 | G176: 0.00 | H176: 215.86 | I176: 0.00 | J176: 0.00 | K176: 0.00 | L176: 0.00 | M176: 616.00 | N176: 58.06
B178: Summe EG | C178: =SUM(C87) -> 1326.62 | D178: =SUM(D87) -> 88.04 | E178: =SUM(E87) -> 0.00 | F178: =SUM(F87) -> 360.43 | H178: =SUM(H87) -> 756.69 | I178: 755.05 | J178: 0.00 | K178: 263.35 | L178: 0.00 | M178: 0.00 | N178: 390.24
B180: Summe 1.OG | C180: =SUM(C125) -> 1037.40 | D180: =SUM(D125) -> 49.12 | E180: =SUM(E125) -> 0.00 | F180: =SUM(F125) -> 356.50 | H180: =SUM(H125) -> 445.19 | I180: 769.51 | J180: 0.00 | K180: 220.87 | L180: 7.45 | M180: 0.00 | N180: 348.56
B182: Summe 2.OG | C182: =SUM(C168) -> 1032.18 | D182: =SUM(D168) -> 56.34 | E182: =SUM(E168) -> 0.00 | F182: =SUM(F168) -> 339.18 | H182: =SUM(H168) -> 428.42 | I182: 942.94 | J182: 0.00 | K182: 56.34 | L182: 0.00 | M182: 0.00 | N182: 210.27
A184: Erw. | N184: 136.00
B188: SUMME GESAMT | C188: =SUM(C176:C186) -> 3657.91 | D188: =SUM(D176:D186) -> 534.29 | E188: =SUM(E176:E186) -> 138.42 | F188: =SUM(F176:F186) -> 1147.05 | H188: =SUM(H176:H187) -> 1846.16 | I188: =SUM(I176:I186) -> 2467.50 | J188: 0.00 | K188: 540.56 | L188: 7.45 | M188: 616.00 | N188: 1,143.13

Sheet Aufmaß Dreifachturnhalle
A1: Aufmaß Glas Dreifachturnhalle
A3: R.Nr. | B3: Nutzung | C3: Fensterfläche
B6: Erdgeschoß
B8: Sporthalle | C8: 130.76
B9: Außengeräteraum
B10: WC-Damen | C10: 0.84
B11: WC-Herren | C11: 0.84
B12: Erste-Hilfe-Raum | C12: 4.00
B13: Platzwartraum | C13: 8.80
B14: Geräteraum
B15: WC
B16: Putzraum
B17: WC
B18: Vorraum (PVC)
B19: Konditionsraum
B20: Regieraum
B21: Geräteraum
B22: Technikraum
B23: Geräteraum
B24: WC
B25: Putzraum
B26: Hallenwart
B27: Flur (PVC) | C27: 114.00
B28: Treppen (PVC)
B29: WC-Damen | C29: 1.28
B30: WC-Herren | C30: 1.28
B31: Verbindungsgang (PVC) | C31: 34.56
B34: Summe EG | C34: =SUM(C6:C33) -> 296.36
A36: R.Nr. | B36: Nutzung | C36: Fensterfläche
B39: 1. Obergeschoß
A41: 1a | B41: Umkleide
B42: Waschraum
B43: Lehrerumkleide
B44: Sportlehrer
B45: Lehrerumkleide
B46: Waschraum
A47: 1b | B47: Umkleide
A48: 2a | B48: Umkleide
B49: Waschraum
B50: Lehrerumkleide
B51: Sportlehrer
B52: Lehrerumkleide
B53: Waschraum
A54: 2b | B54: Umkleide
A55: 3a | B55: Umkleide
B56: Waschraum
B57: Lehrerumkleide
B58: Sportlehrer
B59: Lehrerumkleide
B60: Waschraum
A61: 3b | B61: Umkleide
B62: Putzkammer | C62: 2.34
B63: Flur (PVC) | C63: 110.20
B64: Treppen (PVC)
B67: Summe 1.OG | C67: =SUM(C39:C65) -> 112.54
A69: R.Nr. | B69: Nutzung | C69: Fensterfläche
B72: Zusammenstellung
B75: Summe EG | C75: =SUM(C34) -> 296.36
B77: Summe 1.OG | C77: =SUM(C67) -> 112.54
B81: SUMME GESAMT | C81: =SUM(C75:C79) -> 408.90

Sheet Aufmaß Oskar Maria Graf Gym.
A1: Aufmaß Glas - Oskar Maria Graf Gymnasium
A3: Raummaße | E3: Glasmaße
A4: Haus | B4: Ebene | C4: RaumNr | D4: Raumart | E4: Glasart / RG | F4: Glasfläche
B5: 3 | C5: 336 | D5: Technikraum | E5: - | F5: -
B6: 3 | C6: 335 | D6: WC Damen | E6: Sa | F6: 7.51
B7: 3 | C7: 334 | D7: WC Lehrer | E7: Sa | F7: 7.39
B8: 3 | C8: 327a | D8: Büro | E8: Sa | F8: 7.45
B9: 3 | C9: 327 | D9: Entspannungsraum | E9: Sa | F9: 7.45
B10: 3 | C10: 325 | D10: Medienraum | E10: - | F10: -
B11: 3 | C11: 319 | D11: Putzkammer | E11: - | F11: -
B12: 3 | C12: 318 | D12: WC Herren | E12: Sa | F12: 14.9
B13: 3 | C13: 317 | D13: WC Damen | E13: Sa | F13: 14.9
B14: 3 | C14: 316 | D14: Behinderten WC | E14: Sa | F14: 7.45
B15: 3 | C15: 303 | D15: Lehrmittelbücherei | E15: Sa | F15: 7.45
B16: 3 | C16: 304a | D16: Schülerzeitung | E16: Sa | F16: 7.45
B17: 3 | C17: 304b | D17: SMV Zimmer | E17: Sa | F17: 21.7
B18: 3-EG | D18: Treppenhaus West | E18: Ea | F18: 66.8
B19: 3 | D19: Flur 3. OG | E19: Sa | F19: 197.16
B20: 3 | D20: Flur 3. OG | E20: Ea | F20: 18.09
B21: 3 | D21: Flur 3. OG | E21: Ei | F21: 12.65
B22: 3 | D22: Flur 3. OG Plastikwand | E22: - | F22: -
B23: 3 | D23: Technikraum bei 320 | E23: - | F23: -
B24: 3 | C24: 320 | D24: K1 | E24: Ea | F24: 18.37
B25: 3 | C25: 321 | D25: K2 | E25: Ea | F25: 22.15
B26: 3 | C26: 322 | D26: K3 | E26: Ea | F26: 22.15
B27: 3 | C27: 323 | D27: K4 | E27: Ea | F27: 22.15
B28: 3 | C28: 324 | D28: K5 | E28: Ea | F28: 24.5
B29: 3 | C29: 329 | D29: Lehrerzimmer | E29: Ea | F29: 18.54
B30: 3 | C30: 330 | D30: Maditation | E30: Ea | F30: 26.23
B31: 3 | C31: 331 | D31: Klasse 11d | E31: Ea | F31: 26.23
B32: 3 | C32: 336 | D32: Klasse 11b | E32: Ea | F32: 23.16
B33: 3 | C33: 333 | D33: Sauna | E33: Ea | F33: 49.07
B34: 3-1.UG | D34: Treppenhaus Mitte | E34: Sa | F34: 44.23
B35: 3-1.UG | D35: Treppe Aula / Flur | E35: - | F35: -
B36: 3-EG | D36: Treppenhaus Ost | E36: Sa | F36: 106.76
B37: 2 | C37: 242 | D37: Klasse 11a | E37: Ea | F37: 27.42
B38: 2 | C38: 241 | D38: Klasse 7c | E38: Ea | F38: 20.08
B39: 2 | C39: 240 | D39: Klasse 6d | E39: Ea | F39: 21.83
B40: 2 | C40: 239 | D40: Klasse 6a | E40: Ea | F40: 21.47
B41: 2 | C41: 238 | D41: Klasse 8e | E41: Ea | F41: 18.45
B42: 2 | C42: 237 | D42: Klasse 8c | E42: Ea | F42: 18.48
B43: 2 | C43: 236 | D43: Klasse 7e | E43: Ea | F43: 18.66
B44: 2 | C44: 235 | D44: Klasse 8b | E44: Ea | F44: 18.51
B45: 2 | D45: Kartenraum bei 234 | E45: Ea | F45: 3.69
B46: 2 | C46: 234 | D46: Klasse 7a | E46: Ea | F46: 19.22
B47: 2 | C47: 233 | D47: Klasse 10c | E47: Ea | F47: 18.53
B48: 2 | C48: 232 | D48: Klasse 10a | E48: Ea | F48: 18.46
B49: 2 | C49: 231 | D49: Klasse 6e | E49: Ea | F49: 21.22
B50: 2 | C50: 230 | D50: Klasse 10b | E50: Ea | F50: 18.06
B51: 2 | C51: 229 | D51: Klasse 9a | E51: Ea | F51: 19.1
B52: 2 | C52: 216 | D52: Fremdsprachen | E52: Ea | F52: 19.4
B53: 2 | C53: 215 | D53: Klasse 8d | E53: Ea | F53: 21.31
B54: 2 | C54: 214 | D54: Klasse 11c | E54: Ea | F54: 20.66
B55: 2 | C55: 213 | D55: Klasse 9c | E55: Ea | F55: 20.45
B56: 2 | C56: 207 | D56: Klasse 9b | E56: Ea | F56: 20.59
B57: 2 | C57: 206 | D57: Klasse 11c | E57: Ea | F57: 22.2
B58: 2 | D58: Abstellraum bei 205 | E58: Ea | F58: 4.54
B59: 2 | C59: 205 | D59: Zeichensaal 2 | E59: Ea | F59: 26.41
B60: 2 | C60: 204 | D60: Vorbereitung Kunsterziehung | E60: Ea | F60: 16.72
B61: 2 | C61: 202 | D61: Zeichensaal 1 | E61: Ea | F61: 20.51
B62: 2 | C62: 205 | D62: Tisch und Stuhllager | E62: Sa | F62: 2.83
B63: 2 | C63: 216 | D63: Behinderten WC | E63: Sa | F63: 1.08
B64: 2 | C64: 217 | D64: WC Damen | E64: Sa | F64: 9.8
B65: 2 | C65: 218 | D65: WC Herren | E65: Sa | F65: 5.27
B66: 2 | C66: 220 | D66: Putzkammer | E66: Sa | F66: 1.14
B67: 2 | C67: 221 | D67: Abstellraum | E67: Sa | F67: 1.14
B68: 2 | C68: 222 | D68: WC Herren | E68: Sa | F68: 2.69
B69: 2 | C69: 223 | D69: WC Damen | E69: Sa | F69: 2.7
B70: 2 | C70: 224 | D70: Abstellraum | E70: Sa | F70: 1.46
B71: 2-EG | D71: Fluchttreppe Ost | E71: Sa | F71: 433.31
B72: 2-EG | D72: Fluchttreppe Ost | E72: - | F72: -
B73: 2-EG | D73: Fluchttreppe West | E73: Sa | F73: 433.31
B74: 2-EG | D74: Fluchttreppe West | E74: - | F74: -
B75: 2 | D75: Flur 2.OG | E75: Sa | F75: 288.14
B76: 2 | D76: Flur 2.OG | E76: Ei | F76: 18.30
B77: 2 | D77: Flur 2.OG Plastikwände | E77: - | F77: -
B78: 1 | C78: 144 | D78: Klasse 5b | E78: Ea | F78: 15.57
B79: 1 | C79: 144 | D79: Klasse 5b innen Glas | E79: Ei | F79: 3.05
B80: 1 | C80: 143 | D80: Klasse 5c | E80: Ea | F80: 19.45
B81: 1 | C81: 142 | D81: Klasse 5a | E81: Ea | F81: 21.06
B82: 1 | C82: 141 | D82: Klasse 5e | E82: Ea | F82: 20.9
B83: 1 | C83: 140 | D83: Klasse 5d | E83: Ea | F83: 18.18
B84: 1 | C84: 139 | D84: Bibliothek | E84: Ea | F84: 34.96
B85: 1 | D85: Bibliotehk innen Glas | E85: Ei | F85: 2.19
B86: 1 | C86: 138 | D86: Silentium | E86: Ea | F86: 20.63
B87: 1 | D87: Lager bei 137 | E87: Ea | F87: 3.67
B88: 1 | C88: 137 | D88: Lehrerzimmer | E88: Ea | F88: 41.86
B89: 1 | C89: 137 | D89: Lehrerzimmer | E89: Ei | F89: 1.45
B90: 1 | C90: 136 | D90: Büro Verwaltung | E90: Ea | F90: 6.37
B91: 1 | C91: 135 | D91: Büro Studiendirektorin | E91: Ea | F91: 6.23
B92: 1 | C92: 134 | D92: Büro Schulleiter | E92: Ea | F92: 9.31
B93: 1 | C93: 133 | D93: Büro Sekretariat | E93: Ea | F93: 12.52
B94: 1 | C94: 132 | D94: Büro Erste-Hilfe-Raum | E94: Ea | F94: 6.25
B95: 1 | C95: 131 | D95: Büro Stelvertreter Schulleiter | E95: Ea | F95: 7.45
B96: 1 | C96: 130 | D96: Büro Schülerbücherrei | E96: Ea | F96: 7.45
B97: 1 | C97: 129 | D97: Büro Elternsprechzimmer | E97: Ea | F97: 7.67
B98: 1 | C98: 116 | D98: Behinderten WC | E98: Sa | F98: 0.69
B99: 1 | C99: 117 | D99: WC Damen | E99: Sa | F99: 2.6
B100: 1 | C100: 118 | D100: WC Herren | E100: Sa | F100: 3
B101: 1 | C101: 119 | D101: Technikraum | E101: Sa | F101: 0.84
B102: 1 | C102: 120 | D102: Kopierraum | E102: Sa | F102: 1.21
B103: 1 | C103: 121/a | D103: Archiv 1 | E103: Sa | F103: 3.67
B104: 1 | C104: 122 | D104: WC Herren (Lehrer) | E104: Sa | F104: 2.12
B105: 1 | C105: 123 | D105: WC Damen (Lehrer) | E105: Sa | F105: 2.18
B106: 1 | C106: 124 | D106: Erdkunde Sammlungen | E106: Sa | F106: 1.13
B107: 1 | C107: 112 | D107: Hausmeister | E107: Ea | F107: 0.93
B108: 1 | C108: 111 | D108: Klasse 6c | E108: Ea | F108: 23.64
B109: 1 | C109: 109 | D109: Vorbereitung Computer | E109: Ea | F109: 8.48
B110: 1 | C110: 108 | D110: Vorbereitung Computer | E110: Ea | F110: 8.63
B111: 1 | C111: 107 | D111: Computerraum | E111: Ea | F111: 23.05
B112: 1 | D112: Lager bei 106 | E112: Ea | F112: 4.14
B113: 1 | C113: 106 | D113: Klasse 6b | E113: Ea | F113: 20.71
B114: 1 | C114: 105 | D114: Klasse 7d | E114: Ea | F114: 20.61
B115: 1 | C115: 104 | D115: Klasse 8d | E115: Ea | F115: 21.60
B116: 1 | D116: Flur 1.OG | E116: Sa | F116: 400.55
B117: 1 | D117: Flur 1.OG | E117: Ei | F117: 59.82
B118: 1 | D118: Flur 1.OG Plastikwände | E118: - | F118: -
B119: EG | C119: 44 | D119: Werken 2 | E119: Ea | F119: 25.35
B120: EG | C120: 44 | D120: Werken 2 | E120: Ei | F120: 3.34
B121: EG | C121: 43 | D121: Maschienenraum | E121: Ea | F121: 4.55
B122: EG | C122: 42 | D122: Vorbereitung Werken | E122: Ea | F122: 4.55
B123: EG | C123: 41 | D123: Werken 1 | E123: Ea | F123: 23.76
B124: EG | C124: 40 | D124: Schulküche | E124: Ea | F124: 11.08
B125: EG | C125: 39 | D125: Handarbeitsraum | E125: Ea | F125: 35.27
B126: EG | C126: 38 | D126: Chemielehrsaal 2 | E126: Ea | F126: 17.27
B127: EG | C127: 37 | D127: Chemie Sammlungen | E127: Ea | F127: 13.83
B128: EG | C128: 36 | D128: Chemie Lehrsaal 1 | E128: Ea | F128: 21.34
B129: EG | C129: 35 | D129: Chemie Kollegstufe | E129: Ea | F129: 11.79
B130: EG | C130: 34 | D130: Chemieübungssaal | E130: Ea | F130: 19.05
B131: EG | C131: 33 | D131: Biologie Lehrsaal | E131: Ea | F131: 18.21
B132: EG | C132: 32 | D132: Biologie Sammlungen | E132: Ea | F132: 11.91
B133: EG | C133: 31 | D133: Biologie Übungssaal | E133: Ea | F133: 20.26
B134: EG | C134: 30 | D134: Biologie Kollegstufe | E134: Ea | F134: 7.53
B135: EG | C135: 11 | D135: Küche | E135: Ei | F135: 3.97
B136: EG | C136: 9 | D136: Physiklehrsaal 2 | E136: Ea | F136: 18.76
B137: EG | C137: 8 | D137: Phisik Sammlungen | E137: Ea | F137: 19.9
B138: EG | C138: 7 | D138: Physiklehrsaal 1 | E138: Ea | F138: 20.39
B139: EG | C139: 6 | D139: Physik Übungssaal 2 | E139: Ea | F139: 18.65
B140: EG | C140: 5 | D140: Physik Übungssaal 1 | E140: Ea | F140: 19.64
B141: EG | C141: 12 | D141: Mehrzweckraum | E141: Ea | F141: 47.79
B142: EG | C142: 21 | D142: Behinderten WC | E142: - | F142: -
B143: EG | C143: 22 | D143: WC Damen | E143: - | F143: -
B144: EG | C144: 23 | D144: WC Herren | E144: - | F144: -
B145: EG | C145: 24 | D145: WC Herren (Lehrer) | E145: - | F145: -
B146: EG | C146: 25 | D146: WC Damen (Lehrer) | E146: - | F146: -
B147: EG | C147: 26 | D147: Putzkammer | E147: - | F147: -
B148: EG | D148: Flur EG | E148: Ea | F148: 630.5
B149: EG | D149: Flur EG | E149: Ei | F149: 28.03
B150: EG | D150: Flur EG Wellplastikwand | E150: - | F150: -
B151: EG | D151: Flur EG Plastikwand | E151: - | F151: -
B152: EG | D152: Aula | E152: Ea | F152: 20.94
B153: EG | D153: Aula | E153: Sa | F153: 282.32
B154: EG | D154: Aula Bühne | E154: - | F154: -
B155: EG | D155: Bühne Schminkraum | E155: - | F155: -
B156: EG | D156: WC hinter Bühne | E156: - | F156: -
B157: EG | D157: WC / Dusche hinter Bühne | E157: - | F157: -
B158: EG | D158: Flur hinter Bühne | E158: Ea | F158: 12.3
B159: EG | D159: Flur hinter Bühne | E159: Ei | F159: 2.5
B160: EG | D160: Stahltreppe hinter Bühne | E160: - | F160: -
B161: EG | D161: Musikraum hinter Bühne | E161: Ea | F161: 9.7
B162: EG | D162: Vorbereitung Musik hinter Bühne | E162: Ea | F162: 8.8
B163: EG | D163: Konzertraum hinter Bühne | E163: Ea | F163: 13.5
B164: 1.UG | D164: Flur 1.UG | E164: Sa | F164: 100.7
B165: 1.UG | D165: Flur 1.UG | E165: Ei | F165: 2.13
B166: 1.UG | C166: U13 | D166: Gadarobe | E166: - | F166: -
B167: 1.UG | C167: U20/21 | D167: Lager | E167: - | F167: -
B168: 1.UG | C168: U19 | D168: Lager | E168: - | F168: -
B169: 1.UG | D169: Lager bei U19 | E169: - | F169: -
B170: 1.UG | D170: Technikraum bei U19 | E170: - | F170: -
B171: 1.UG | D171: Heizraum bei U19 | E171: - | F171: -
B172: 1.UG | C172: U18 | D172: Lager | E172: - | F172: -
B173: 1.UG | C173: U17 | D173: Fundus | E173: - | F173: -
B174: 1.UG | C174: U16 | D174: Technikraum | E174: - | F174: -
B175: 1.UG | C175: U15 | D175: Lager | E175: - | F175: -
B176: 1.UG | C176: U14 | D176: Werkstadt | E176: - | F176: -
B177: 1.UG | C177: U11 | D177: Fotolabor | E177: - | F177: -
B178: 1.UG | C178: U11 | D178: Fotolabor Dunkelkammer 1 | E178: - | F178: -
B179: 1.UG | C179: U11 | D179: Fotolabor Dunkelkammer 2 | E179: - | F179: -
B180: 1.UG | C180: U11 | D180: Fotolabor Dunkelkammer Vorraum | E180: - | F180: -
B181: 1.UG | D181: WC Damen | E181: - | F181: -
B182: 1.UG | C182: U6 | E182: - | F182: -
B183: 1.UG | D183: WC Herren | E183: - | F183: -
B184: 1.UG | D184: Behinderten WC | E184: - | F184: -
B185: 1.UG | D185: WC Vorraum | E185: - | F185: -
B186: 1.UG | D186: Lager Stahltür | E186: - | F186: -
B187: 1.UG | D187: Paplager | E187: - | F187: -
B188: 1.UG | D188: Vorraum von K29 | E188: - | F188: -
B189: 1.UG | C189: K29 | D189: Heizraum + Lager | E189: - | F189: -
B190: 1.UG | D190: Getränkelager | E190: - | F190: -
B191: 1.UG | C191: K33 | D191: Technikraum | E191: - | F191: -
D193: Summe | F193: =SUM(F5:F191) -> 4,864.46
E195: davon innen | F195: =SUM(F21,F76,F79,F85,F89,F117,F120,F135,F149,F159,F165) -> 137.43
E196: davon aussen | F196: =SUM(F6:F20,F24:F75,F78,F80:F84,F86:F88,F90:F116,F119,F121:F134,F136:F148,F152:F158,F161:F164) -> 4,727.03
B199: Einteilung der Glasarten in Reinigungsgruppen
B200: Reinigungs-gruppe | C200: Bezeichnung im Aufmaß | E200: Erklärung
B202: Ea | C202: Einfachglas | D202: außen | E202: entspricht Einfach- und Isolierverglasung ( Glas in der Außenfassade)
B203: Ei | C203: Einfachglas | D203: innen | E203: entspricht Einfach- und Isolierverglasung ( Glas nicht in der Außenfassade)
B204: Da | C204: Doppelglas | D204: außen | E204: entspricht zwei voneinander getrennte Flügel (Glas in der Außenfassade)
B205: Di | C205: Doppelglas | D205: innen | E205: entspricht zwei voneinander getrennte Flügel (Glas nicht in der Außenfassade)
B206: Va | C206: Verbundglas | D206: außen | E206: entspricht zwei miteinander verbundene Flügel (Glas in der Außenfassade)
... 7 more rows

Sheet Mensa und Erweiterungsbau Oskar
A1: Aufmaß Glas - Oskar Maria Graf Gymnasium / Mensa und Erweiterungsbau
A3: Raummaße | E3: Glaßmaße
A4: Haus | B4: Ebene | C4: RaumNr. | D4: Raumart | E4: Glasart/RG | F4: Glasfläche
A7: Erweiterungsbau | B7: EG | C7: 00.01 | D7: Foyer | F7: 100.50
A8: Erweiterungsbau | B8: EG | C8: 00.02 | D8: Technik | F8: 0.00
A9: Erweiterungsbau | B9: EG | C9: 00.03 | D9: WC Damen | F9: 0.00
A10: Erweiterungsbau | B10: EG | C10: 00.04 | D10: WC Herren | F10: 0.00
A11: Erweiterungsbau | B11: EG | C11: 00.05 | D11: Putzraum | F11: 0.00
A12: Erweiterungsbau | B12: EG | C12: 00.06 | D12: Lehrmittelraum | F12: 0.00
A13: Erweiterungsbau | B13: EG | C13: 00.07 | D13: Elektroraum | F13: 0.00
A14: Erweiterungsbau | B14: EG | D14: Aufzug | F14: 0.00
A15: Erweiterungsbau | B15: EG | D15: Treppe Ost | F15: 10.00
A16: Erweiterungsbau | B16: EG | D16: Treppe West | F16: 10.00
A17: Erweiterungsbau | B17: 1. OG | D17: Flur | F17: 22.50
A18: Erweiterungsbau | B18: 1. OG | C18: 01.11 | D18: Klassenraum 1 | F18: 20.00
A19: Erweiterungsbau | B19: 1. OG | C19: 01.12 | D19: Klassenraum 2 | F19: 20.00
A20: Erweiterungsbau | B20: 1. OG | C20: 01.13 | D20: Klassenraum 3 | F20: 20.00
A21: Erweiterungsbau | B21: 1. OG | C21: 01.14 | D21: Klassenraum 4 | F21: 20.00
A22: Erweiterungsbau | B22: 1. OG | D22: Balkone | F22: 0.00
A23: Erweiterungsbau | B23: 1. OG | D23: Aufzug | F23: 11.20
A24: Erweiterungsbau | B24: 1. OG | D24: Treppe Ost 1.OG | F24: 10.00
A25: Erweiterungsbau | B25: 1. OG | D25: Treppe West 1.OG | F25: 10.00
A26: Erweiterungsbau | B26: 2. OG | D26: Flur | F26: 22.50
A27: Erweiterungsbau | B27: 2. OG | C27: 02.21 | D27: Klassenraum 5 | F27: 20.00
A28: Erweiterungsbau | B28: 2. OG | C28: 02.22 | D28: Klassenraum 6 | F28: 20.00
A29: Erweiterungsbau | B29: 2. OG | C29: 02.23 | D29: Klassenraum 7 | F29: 20.00
A30: Erweiterungsbau | B30: 2. OG | C30: 02.24 | D30: Klassenraum 8 | F30: 20.00
A31: Erweiterungsbau | B31: 2. OG | D31: Balkone | F31: 0.00
A32: Erweiterungsbau | B32: 2. OG | D32: Aufzug | F32: 11.20
A33: Erweiterungsbau | B33: 2. OG | D33: Treppe Ost 2.OG | F33: 10.00
A34: Erweiterungsbau | B34: 2. OG | D34: Treppe West 2.OG | F34: 10.00
A36: Mensa | B36: UG | D36: Technik Heizung/ Elktro
A37: Mensa | B37: UG | D37: Technik Lüftung
A38: Mensa | B38: EG | D38: Speisesaal | F38: 38.00
A39: Mensa | B39: EG | D39: Aufenthalt | F39: 28.00
A40: Mensa | B40: EG | D40: Flur | F40: 14.00
A41: Mensa | B41: EG | D41: Gardrobe
A42: Mensa | B42: EG | D42: Küche
A43: Mensa | B43: EG | D43: Ausgabe
A44: Mensa | B44: EG | D44: Spülküche
A45: Mensa | B45: EG | D45: Lager | F45: 1.00
A46: Mensa | B46: EG | D46: Lager Kühlzeile
A47: Mensa | B47: EG | D47: Flur | F47: 1.00
A48: Mensa | B48: EG | D48: Pers. Umkleide
A49: Mensa | B49: EG | D49: Personal WC
A50: Mensa | B50: EG | D50: Behinderten WC
A51: Mensa | B51: EG | D51: Putzraum
A52: Mensa | B52: EG | D52: Vorraum WC Mädchen | F52: 1.00
A53: Mensa | B53: EG | D53: WC Mädchen
A54: Mensa | B54: EG | D54: Vorraum WC Knaben | F54: 1.00
A55: Mensa | B55: EG | D55: WCKnaben
D59: Summe | E59: davon aussen | F59: =SUM(F7:F58) -> 471.90

Sheet Kalkulation Glasreinigung
C1: Objekt: | D1: Gebäude siehe Tabelle
C3: PLZ, Ort | D3: Freising
C4: Strasse
C6: Ansprechpartner:
H8: Glasreinigung
B9: Nr. | C9: Gebäude | D9: Reinigungsobjekt | E9: Reinigung / Durchführung | F9: Turnus | G9: Fläche einseitig gemessen | H9: Gesamtfläche in Qm pro Jahr einseitig gemessen | I9: Leistungswert pro Stunde | J9: Std. Reinigung | K9: Gesamtpreis Reinigung | L9: SVS Satz
B10: 1 | C10: Wirtschaftsschule | D10: Fensterflächen | E10: beidseitig | F10: 1j | G10: 1,143.13 | H10: 1,143.13 | J10: =IF(I10=0,0,H10/I10) -> 0 | K10: =SUM(J10*L10) -> 0 | L10: ='SVS Glas'!$E$62 -> 0.00 €
B11: 2 | C11: Dreifachturnhalle | D11: Fensterflächen | E11: beidseitig | F11: 1j | G11: 408.90 | H11: 408.90 | J11: 0 | K11: 0 | L11: ='SVS Glas'!$E$62 -> 0.00 €
B12: 3 | C12: Oskar Maria Graf Gymnasium / Erweiterungsbau / Mensa | D12: Fensterflächen | E12: beidseitig | F12: 1j | G12: 5,336.36 | H12: 5,336.36 | J12: 0 | K12: 0 | L12: ='SVS Glas'!$E$62 -> 0.00 €
B13: Summe | H13: =SUM(H10:H12) -> 6,888.39 | J13: =SUM(J10:J12) -> 0 | K13: =SUM(K10:K12) -> 0

Sheet Preisblatt
A2: P r e i s b l a t t
A5: Kostengesamtübersicht Glasreinigung
A7: Glasreinigung / Los 2
A9: Reinigungsart | B9: Std. jhrl. Glasreinigung | C9: Preis jhrl. Glasreinigung | D9: Gebäude
A10: Glasreinigung | B10: =VALUE('Kalkulation Glasreinigung'!J13) -> 0.00 € | C10: =VALUE('Kalkulation Glasreinigung'!K13) -> 0.00 € | D10: alle Gebäude
A11: Summe pro Jahr | B11: =SUM(B10:B10) -> 0.00 € | C11: =SUM(C10:C10) -> 0.00 €
B12: Gesamtkosten netto | C12: =SUM(C11) -> 0.00 €
B14: + 19.00% MwSt. | C14: =SUM(C12*0.19) -> 0.00 €
B16: Gesamtkosten brutto | C16: =SUM(C12:C15) -> 0.00 €
A21: Bedarfspositionen:
A23: m²-Preis Glas ohne Rahmen pro m² Reinigung
A25: m²-Preis Glas mit Rahmen pro m² Reinigung
A27: SVS Regie Glasreinigung
A45: Datum - Stempel - rechtsverbindliche Unterschrift
